fUST/lending_fUST_20241023
["ID","MTS","AMOUNT","RATE_DAILY","PERIOD"]
[340668146,1729624238735,-151.0,0.0001597,2]
[340668147,1729624238745,-438.15694912,0.00015979,2]
[340668148,1729624238755,-151.0,0.0001598,2]
[340668149,1729624238766,-151.0,0.0001598,2]
[340668150,1729624238776,-154.623413,0.0001598,2]
[340668151,1729624238785,-151.0,0.0001598,2]
[340668152,1729624238794,-151.0,0.0001598,2]
[340668153,1729624238803,-151.0,0.0001598,2]
[340668154,1729624238812,-151.0,0.0001598,2]
[340668155,1729624238821,-151.768307,0.0001598,2]
[340668156,1729624238831,-151.0,0.0001598,2]
[340668157,1729624238841,-194.405621,0.0001598,2]
[340668158,1729624238850,-151.0,0.0001598,2]
[340668159,1729624238859,-151.0,0.0001598,2]
[340668160,1729624238869,-215.876221,0.0001598,2]
[340668161,1729624238878,-215.876221,0.0001598,2]
[340668162,1729624238887,-215.876221,0.0001598,2]
[340668163,1729624238896,-215.876221,0.0001598,2]
[340668164,1729624238905,-151.0,0.0001598,2]
[340668165,1729624238914,-151.0,0.0001598,2]
[340668166,1729624238924,-650.125627,0.0001598,2]
[340668167,1729624238933,-650.125627,0.0001598,2]
[340668168,1729624238943,-650.125627,0.0001598,2]
[340668169,1729624238952,-650.125627,0.0001598,2]
[340668170,1729624238961,-151.0,0.0001598,2]
[340668171,1729624238971,-246.345708,0.0001598,2]
[340668172,1729624238980,-254.907647,0.0001598,2]
[340668173,1729624238989,-254.907647,0.0001598,2]
[340668174,1729624238998,-254.907647,0.0001598,2]
[340668175,1729624239007,-254.907647,0.0001598,2]
[340668176,1729624239016,-151.0,0.0001598,2]
[340668177,1729624239025,-151.0,0.0001598,2]
[340668178,1729624239034,-151.0,0.0001598,2]
[340668179,1729624239044,-151.0,0.0001598,2]
[340668180,1729624239053,-151.0,0.0001598,2]
[340668181,1729624239062,-151.0,0.0001598,2]
[340668182,1729624239071,-151.0,0.0001598,2]
[340668183,1729624239081,-151.0,0.0001598,2]
[340668184,1729624239091,-807.308765,0.0001598,2]
[340668185,1729624239102,-807.308765,0.0001598,2]
[340668186,1729624239111,-807.308765,0.0001598,2]
[340668187,1729624239121,-807.308765,0.0001598,2]
[340668188,1729624239130,-292.913249,0.0001598,2]
[340668189,1729624239140,-292.913249,0.0001598,2]
[340668190,1729624239151,-151.0,0.0001598,2]
[340668191,1729624239162,-532.308093,0.0001598,2]
[340668192,1729624239174,-532.308093,0.0001598,2]
[340668193,1729624239184,-151.0,0.0001598,2]
[340668194,1729624239193,-151.0,0.0001598,2]
[340668195,1729624239202,-151.0,0.0001598,2]
[340668196,1729624239211,-151.0,0.0001598,2]
[340668197,1729624239220,-187.261636,0.0001598,2]
[340668198,1729624239230,-151.0,0.0001598,2]
[340668199,1729624239239,-187.261636,0.0001598,2]
[340668200,1729624239248,-151.0,0.0001598,2]
[340668201,1729624239257,-151.0,0.0001598,2]
[340668202,1729624239266,-151.0,0.0001598,2]
[340668203,1729624239275,-151.0,0.0001598,2]
[340668204,1729624239284,-151.0,0.0001598,2]
[340668205,1729624239294,-287.007039,0.0001598,2]
[340668206,1729624239304,-287.007039,0.0001598,2]
[340668207,1729624239313,-183.164691,0.0001598,2]
[340668208,1729624239322,-254.372975,0.0001598,2]
[340668209,1729624239331,-161.594139,0.0001598,2]
[340668210,1729624239341,-183.164691,0.0001598,2]
[340668211,1729624239350,-161.594139,0.0001598,2]
[340668212,1729624239359,-244.046513,0.0001598,2]
[340668213,1729624239368,-244.046513,0.0001598,2]
[340668214,1729624239376,-151.0,0.0001598,2]
[340668215,1729624239385,-151.0,0.0001598,2]
[340668216,1729624239394,-151.0,0.0001598,2]
[340668217,1729624239404,-226.651312,0.0001598,2]
[340668218,1729624239414,-226.651312,0.0001598,2]
[340668219,1729624239425,-151.0,0.00015981,2]
[340668220,1729624239439,-151.73652,0.00015981,2]
[340668221,1729624239452,-151.0,0.00015981,2]
[340668222,1729624239461,-151.0,0.00015981,2]
[340668223,1729624239470,-151.0,0.00015981,2]
[340668224,1729624239484,-199.25514782,0.00015987,2]
[340668225,1729624239493,-612.18520499,0.00015987,2]
[340668226,1729624239502,-151.0,0.00015988,2]
[340668227,1729624239512,-151.0,0.00015988,2]
[340668228,1729624239521,-215.876221,0.00015988,2]
[340668229,1729624239532,-215.876221,0.00015988,2]
[340668230,1729624239541,-151.0,0.00015988,2]
[340668231,1729624239550,-650.125627,0.00015988,2]
[340668232,1729624239560,-650.125627,0.00015988,2]
[340668233,1729624239569,-254.907647,0.00015988,2]
[340668234,1729624239578,-254.907647,0.00015988,2]
[340668235,1729624239587,-151.0,0.00015988,2]
[340668236,1729624239596,-151.0,0.00015988,2]
[340668237,1729624239606,-151.0,0.00015988,2]
[340668238,1729624239615,-807.308765,0.00015988,2]
[340668239,1729624239625,-807.308765,0.00015988,2]
[340668240,1729624239634,-18739.3313273,0.00015988,2]
[340668241,1729624239644,-95066.5556844,0.00015988,2]
[340668242,1729624239653,-609.81628413,0.00015989,7]
[340668243,1729624239664,-151.0,0.0001599,2]
[340668244,1729624239673,-151.0,0.0001599,2]
[340668245,1729624239682,-151.0,0.0001599,2]
[340668246,1729624239692,-151.0,0.0001599,2]
[340668247,1729624239701,-151.0,0.0001599,2]
[340668248,1729624239711,-151.0,0.0001599,2]
[340668249,1729624239721,-153.184812,0.0001599,2]
[340668250,1729624239730,-151.0,0.0001599,2]
[340668251,1729624239740,-151.0,0.0001599,2]
[340668252,1729624239749,-151.0,0.0001599,2]
[340668253,1729624239759,-151.0,0.0001599,2]
[340668254,1729624239768,-232.330211,0.0001599,2]
[340668255,1729624239778,-151.0,0.0001599,2]
[340668256,1729624239787,-151.0,0.0001599,2]
[340668257,1729624239797,-151.0,0.0001599,2]
[340668258,1729624239806,-151.0,0.0001599,2]
[340668259,1729624239815,-151.0,0.0001599,2]
[340668260,1729624239825,-151.0,0.0001599,2]
[340668261,1729624239834,-151.0,0.0001599,2]
[340668262,1729624239843,-151.0,0.0001599,2]
[340668263,1729624239853,-175.388486,0.0001599,2]
[340668264,1729624239863,-151.0,0.0001599,2]
[340668265,1729624239873,-151.0,0.0001599,2]
[340668266,1729624239882,-151.0,0.0001599,2]
[340668267,1729624239892,-151.0,0.0001599,2]
[340668268,1729624239902,-368.857523,0.0001599,2]
[340668269,1729624239912,-151.0,0.0001599,2]
[340668270,1729624239921,-368.857523,0.0001599,2]
[340668271,1729624239931,-151.0,0.0001599,2]
[340668272,1729624239940,-151.420846,0.0001599,2]
[340668273,1729624239950,-151.0,0.0001599,2]
[340668275,1729624239959,-151.0,0.0001599,2]
[340668276,1729624239968,-239.941981,0.0001599,2]
[340668277,1729624239977,-239.941981,0.0001599,2]
[340668278,1729624239987,-151.0,0.0001599,2]
[340668279,1729624239996,-151.0,0.0001599,2]
[340668280,1729624240006,-151.909241,0.0001599,2]
[340668281,1729624240015,-151.0,0.0001599,2]
[340668282,1729624240024,-151.909241,0.0001599,2]
[340668283,1729624240033,-182.990915,0.0001599,2]
[340668284,1729624240042,-182.990915,0.0001599,2]
[340668285,1729624240051,-151.0,0.0001599,2]
[340668286,1729624240060,-151.0,0.0001599,2]
[340668287,1729624240070,-345.476853,0.0001599,2]
[340668288,1729624240079,-345.476853,0.0001599,2]
[340668289,1729624240089,-345.476853,0.0001599,2]
[340668290,1729624240099,-345.476853,0.0001599,2]
[340668291,1729624240109,-151.0,0.0001599,2]
[340668292,1729624240120,-151.0,0.0001599,2]
[340668293,1729624240130,-151.0,0.0001599,2]
[340668294,1729624240139,-151.0,0.0001599,2]
[340668295,1729624240150,-215.876221,0.0001599,2]
[340668296,1729624240159,-215.876221,0.0001599,2]
[340668297,1729624240169,-151.0,0.0001599,2]
[340668298,1729624240178,-650.125627,0.0001599,2]
[340668299,1729624240187,-650.125627,0.0001599,2]
[340668300,1729624240196,-254.907647,0.0001599,2]
[340668301,1729624240206,-254.907647,0.0001599,2]
[340668302,1729624240215,-151.0,0.0001599,2]
[340668303,1729624240226,-151.0,0.0001599,2]
[340668304,1729624240236,-151.0,0.0001599,2]
[340668305,1729624240248,-151.0,0.0001599,2]
[340668306,1729624240257,-807.308765,0.0001599,2]
[340668307,1729624240266,-807.308765,0.0001599,2]
[340668308,1729624240275,-292.913249,0.0001599,2]
[340668310,1729624240284,-292.913249,0.0001599,2]
[340668311,1729624240294,-151.0,0.0001599,2]
[340668312,1729624240303,-532.308093,0.0001599,2]
[340668313,1729624240311,-532.308093,0.0001599,2]
[340668314,1729624240321,-151.0,0.0001599,2]
[340668315,1729624240331,-151.0,0.0001599,2]
[340668316,1729624240339,-151.0,0.0001599,2]
[340668317,1729624240349,-151.0,0.0001599,2]
[340668318,1729624240357,-187.261636,0.0001599,2]
[340668319,1729624240367,-151.0,0.0001599,2]
[340668320,1729624240380,-187.261636,0.0001599,2]
[340668321,1729624240389,-151.0,0.0001599,2]
[340668322,1729624240398,-486.403966,0.0001599,2]
[340668323,1729624240408,-151.0,0.0001599,2]
[340668324,1729624240417,-151.0,0.0001599,2]
[340668325,1729624240426,-56217.993982,0.0001599,2]
[340668326,1729624240438,-93304.24310926,0.0001599,2]
[340668327,1729624240719,-43819.19667336,0.0001599,2]
[340668328,1729624240874,-20592.9,0.0001599,2]
[340668329,1729624240886,-26139.6377397,0.0001599,2]
[340668330,1729624241251,-3290.01473372,0.0001599,2]
[340668331,1729624241265,-793.92494189,0.0001599,2]
[340668332,1729624241278,-1575.86391492,0.0001599,2]
[340668333,1729624241289,-1268.41937026,0.0001599,2]
[340668334,1729624241306,-2006.6392084,0.0001599,2]
[340668335,1729624241319,-25348.8140303,0.0001599,2]
[340668348,1729624246254,-292.10463274,0.00015979,2]
[340668349,1729624246263,-19885.55739588,0.0001599,2]
[340668372,1729625319022,5367.59398756,0.00021,60]
[340668417,1729625432436,-400.0,0.00013973,2]
[340668419,1729625432448,-7155.90877827,0.00015868,2]
[340668421,1729625432458,-218.78260054,0.0001587,2]
[340668423,1729625432468,-392.83995573,0.0001587,2]
[340668425,1729625432477,-218.7826005,0.00015883,2]
[340668427,1729625432487,-250.0,0.0001589,2]
[340668429,1729625432498,-218.7826005,0.00015895,2]
[340668431,1729625432507,-300.0,0.00015899,2]
[340668433,1729625432516,-300.0,0.00015899,2]
[340668435,1729625432526,-4000.0,0.000159,2]
[340668437,1729625432535,-218.7826005,0.00015908,2]
[340668439,1729625432544,-218.7826005,0.0001592,2]
[340668441,1729625432553,-346.50625475,0.00015957,2]
[340668551,1729625446541,-527.0,0.00015957,2]
[340668553,1729625446553,-1152.0,0.00015957,2]
[340668554,1729625446563,-428.52964349,0.00015959,2]
[340668556,1729625446573,-371.34262004,0.00015959,2]
[340668557,1729625446584,-159.91807032,0.0001596,2]
[340668558,1729625446595,-14991.4650619,0.0001596,2]
[340668559,1729625446606,-51909.08439594,0.0001596,2]
[340668585,1729626632563,-400.0,0.00013973,2]
[340668586,1729626632573,-564.7590277,0.00014961,2]
[340668587,1729626632584,-164.65503,0.00014976,2]
[340668588,1729626632595,-300.0,0.00015662,2]
[340668589,1729626632606,-7.5150568,0.00015662,2]
[340668599,1729626640656,-292.4849432,0.00015662,2]
[340668600,1729626640666,-527.0,0.00015663,2]
[340668601,1729626640675,-165.32692604,0.00015663,2]
[340668640,1729626849187,165.0,0.00022,60]
[340668710,1729627837872,-193.96765258,0.00013873,2]
[340668711,1729627837882,-380.0,0.00013973,2]
[340668712,1729627837891,-200.0,0.00013973,2]
[340668713,1729627837901,-169.4783,0.00014249,2]
[340668714,1729627837911,-169.4783,0.00014323,2]
[340668715,1729627837920,-169.4783,0.00014397,2]
[340668716,1729627837930,-169.4783,0.00014472,2]
[340668717,1729627837940,-169.4783,0.00014546,2]
[340668718,1729627837951,-165.0,0.0001461,2]
[340668719,1729627837962,-169.4783,0.0001462,2]
[340668720,1729627837972,-169.4783,0.00014694,2]
[340668721,1729627837982,-25372.29314042,0.00014747,2]
[340668722,1729627837999,-747.59613357,0.00014747,2]
[340668723,1729627838009,-300.0,0.00014747,2]
[340668724,1729627838019,-300.0,0.00014747,2]
[340668725,1729627838029,-19495.07227794,0.00014748,2]
[340668734,1729627839823,-2945.29375419,0.00014748,2]
[340668735,1729627839835,-1173.36270579,0.00014748,2]
[340668736,1729627839846,-685.07446695,0.00014748,2]
[340668746,1729627842976,-601.19679513,0.00014748,2]
[340668747,1729627842987,-169.4783,0.00014769,2]
[340668748,1729627842996,-169.4783,0.00014843,2]
[340668749,1729627843006,-169.4783,0.00014917,2]
[340668750,1729627843015,-169.4783,0.00014991,2]
[340668751,1729627843025,-469.48085333,0.00015171,2]
[340668752,1729627843035,-611.41342687,0.00015178,2]
[340668753,1729627843045,-559.5640647,0.00015178,2]
[340668754,1729627843054,-426.1685528,0.00015178,2]
[340668755,1729627843065,-421.3642414,0.00015178,2]
[340668756,1729627843074,-500.0,0.00015319,2]
[340668757,1729627843084,-500.0,0.00015319,2]
[340668758,1729627843094,-500.0,0.00015319,2]
[340668759,1729627843104,-289.10920574,0.00015319,2]
[340668760,1729627843116,-210.89079426,0.00015319,2]
[340668761,1729627843125,-500.0,0.00015319,2]
[340668762,1729627843135,-500.0,0.00015319,2]
[340668763,1729627843144,-500.0,0.00015319,2]
[340668764,1729627843154,-500.0,0.00015319,2]
[340668765,1729627843163,-500.0,0.00015319,2]
[340668766,1729627843172,-500.0,0.00015319,2]
[340668767,1729627843182,-591.5717359,0.00015319,2]
[340668768,1729627843192,-500.0,0.00015319,2]
[340668769,1729627843202,-500.0,0.00015319,2]
[340668770,1729627843211,-6947.98365586,0.00015321,2]
[340668771,1729627843221,-1009.22083469,0.00015402,2]
[340668772,1729627843234,-3698.66498492,0.00015402,2]
[340668773,1729627843245,-353.55596013,0.00015461,2]
[340668774,1729627843255,-527.0,0.00015663,2]
[340668775,1729627843264,-2397.0,0.00015663,2]
[340668776,1729627843274,-640.166,0.00015663,2]
[340668777,1729627843283,-153.0,0.000158,2]
[340668778,1729627843293,-210.744449,0.000158,2]
[340668779,1729627843303,-350.4758415,0.000158,2]
[340668780,1729627843312,-421.1772565,0.00015842,2]
[340668781,1729627843323,-250.0,0.0001589,2]
[340668782,1729627843332,-210.744449,0.000159,2]
[340668783,1729627843342,-1194.35071637,0.0001591,2]
[340668784,1729627843352,-465.22404267,0.0001593,2]
[340668785,1729627843361,-200.498,0.0001597,2]
[340668786,1729627843371,-3555.82967289,0.0001597,2]
[340668798,1729627845750,-8048.7921312,0.0001597,2]
[340668799,1729627845763,-17782.97472371,0.0001597,2]
[340668800,1729627845772,-7107.7981051,0.0001597,2]
[340668801,1729627845782,-181.82190606,0.00015979,2]
[340668802,1729627845791,-214.77879645,0.00015979,2]
[340668803,1729627845802,-609.75479117,0.00015979,2]
[340668804,1729627845811,-151.0,0.0001598,2]
[340668805,1729627845821,-151.0,0.0001598,2]
[340668806,1729627845831,-223.647414,0.0001598,2]
[340668807,1729627845841,-204.369031,0.0001598,2]
[340668808,1729627845851,-223.647414,0.0001598,2]
[340668809,1729627845861,-204.369031,0.0001598,2]
[340668810,1729627845871,-151.0,0.0001598,2]
[340668811,1729627845880,-152.306952,0.0001598,2]
[340668812,1729627845890,-215.947782,0.0001598,2]
[340668813,1729627845900,-215.947782,0.0001598,2]
[340668814,1729627845910,-151.0,0.0001598,2]
[340668815,1729627845919,-390.075376,0.0001598,2]
[340668816,1729627845929,-390.075376,0.0001598,2]
[340668817,1729627845938,-164.848222,0.0001598,2]
[340668818,1729627845947,-164.848222,0.0001598,2]
[340668819,1729627845957,-313.686898,0.0001598,2]
[340668820,1729627845966,-313.686898,0.0001598,2]
[340668821,1729627845976,-151.0,0.0001598,2]
[340668822,1729627845986,-151.0,0.0001598,2]
[340668823,1729627845995,-240.193463,0.0001598,2]
[340668824,1729627846005,-240.193463,0.0001598,2]
[340668825,1729627846014,-66640.06208991,0.0001598,2]
[340668826,1729627846030,-745.1595877,0.0001598,2]
[340669214,1729629347825,191.2458021,0.00015,120]
[340669215,1729629669387,7000.0,4.68e-06,2]
[340669216,1729629669414,566.33404116,4.68e-06,2]
[340669255,1729630232098,-222.77279519,0.000138,2]
[340669257,1729630232109,-450.40534038,0.000138,2]
[340669258,1729630232118,-183.50754537,0.00013874,2]
[340669259,1729630232128,-300.0,0.00013971,2]
[340669260,1729630232138,-300.0,0.00013971,2]
[340669261,1729630232148,-407.60895125,0.00013972,2]
[340669262,1729630232158,-23507.90034659,0.00013972,2]
[340669263,1729630232167,-7844.58170991,0.00013972,2]
[340669425,1729630243232,-500.0,0.00013971,2]
[340669426,1729630243243,-500.0,0.00013971,2]
[340669427,1729630243253,-500.0,0.00013971,2]
[340669428,1729630243263,-500.0,0.00013971,2]
[340669429,1729630243272,-500.0,0.00013971,2]
[340669430,1729630243282,-500.0,0.00013971,2]
[340669431,1729630243291,-500.0,0.00013971,2]
[340669432,1729630243301,-500.0,0.00013971,2]
[340669433,1729630243310,-336.86305609,0.00013971,2]
[340669434,1729630243321,-493.71569126,0.00013971,2]
[340669435,1729630246119,-6.28430874,0.00013971,2]
[340669436,1729630246129,-661.71569126,0.00013972,2]
[340669437,1729630516796,1176.78,0.00022,60]
[340669472,1729631432223,-390.0,0.00013973,2]
[340669473,1729631432234,-200.0,0.00013973,2]
[340669474,1729631432245,-150.228,0.00014339,2]
[340669475,1729631432258,-300.0,0.00014989,2]
[340669476,1729631432268,-300.0,0.00014989,2]
[340669477,1729631432278,-321.23579641,0.00014989,2]
[340669508,1729631438392,-2723.72152493,0.00014989,2]
[340669526,1729631438556,-2600.33096446,0.00014989,2]
[340669528,1729631438565,-500.0,0.0001499,7]
[340669530,1729631438575,-500.0,0.0001499,7]
[340669532,1729631438585,-500.0,0.0001499,7]
[340669534,1729631438594,-580.61,0.0001499,7]
[340669536,1729631438604,-151.0,0.0001499,2]
[340669538,1729631438613,-151.0,0.0001499,2]
[340669540,1729631438624,-4221.50827102,0.00015,7]
[340669543,1729631438634,-151.0,0.00015,2]
[340669545,1729631438644,-258.306335,0.00015,2]
[340669547,1729631438653,-258.306335,0.00015,2]
[340669549,1729631438663,-151.0,0.00015,2]
[340669550,1729631438671,-151.0,0.00015143,2]
[340669552,1729631438681,-151.0,0.00015149,2]
[340669554,1729631438690,-151.0,0.00015149,2]
[340669555,1729631438700,-151.0,0.00015149,2]
[340669556,1729631438710,-157.242837,0.00015149,2]
[340669557,1729631438719,-157.242837,0.00015149,2]
[340669559,1729631438728,-151.0,0.00015461,2]
[340669561,1729631438738,-151.0,0.00015461,2]
[340669563,1729631438747,-318.20036418,0.00015519,2]
[340669565,1729631438756,-6790.57535667,0.00015519,2]
[340669566,1729631438765,-537.42922845,0.00015609,2]
[340669568,1729631438775,-10952.0400925,0.0001561,2]
[340669570,1729631438784,-3547.54636521,0.0001561,2]
[340669572,1729631438794,-343.10986828,0.0001561,2]
[340669574,1729631438803,-184.72333613,0.00015619,2]
[340669576,1729631438812,-500.0,0.00015619,2]
[340669578,1729631438821,-235.74022086,0.00015619,2]
[340669580,1729631438831,-189.19344167,0.00015619,2]
[340669582,1729631438840,-4829.64793437,0.00015619,2]
[340669740,1729631440324,-2848.455304,0.00015619,2]
[340670024,1729631444216,-1150.23061612,0.00015619,2]
[340670031,1729631444276,-12997.88729961,0.00015619,2]
[340670033,1729631444285,-46420.83415868,0.00015619,2]
[340670035,1729631444296,-151.0,0.0001562,2]
[340670037,1729631444305,-151.0,0.0001562,2]
[340670039,1729631444315,-151.0,0.0001562,2]
[340670041,1729631444325,-151.0,0.0001562,2]
[340670043,1729631444334,-431.640541,0.0001562,2]
[340670045,1729631444344,-431.640541,0.0001562,2]
[340670047,1729631444354,-431.640541,0.0001562,2]
[340670049,1729631444363,-431.640541,0.0001562,2]
[340670051,1729631444372,-151.0,0.0001562,2]
[340670053,1729631444382,-162.500423,0.0001562,2]
[340670055,1729631444392,-151.0,0.0001562,2]
[340670057,1729631444401,-151.0,0.0001562,2]
[340670059,1729631444413,-10952.0400925,0.0001562,2]
[340670062,1729631444425,-3547.54636521,0.0001562,2]
[340670064,1729631444435,-151.0,0.0001563,2]
[340670066,1729631444444,-151.0,0.0001563,2]
[340670068,1729631444455,-151.0,0.0001563,2]
[340670070,1729631444465,-151.0,0.0001563,2]
[340670072,1729631444474,-151.0,0.0001563,2]
[340670074,1729631444485,-151.0,0.0001563,2]
[340670076,1729631444495,-183.932128,0.0001563,2]
[340670078,1729631444505,-183.932128,0.0001563,2]
[340670080,1729631444515,-183.932128,0.0001563,2]
[340670082,1729631444524,-183.932128,0.0001563,2]
[340670084,1729631444533,-183.932128,0.0001563,2]
[340670086,1729631444543,-183.932128,0.0001563,2]
[340670088,1729631444553,-476.469852,0.0001563,2]
[340670090,1729631444563,-476.469852,0.0001563,2]
[340670092,1729631444573,-476.469852,0.0001563,2]
[340670094,1729631444582,-476.469852,0.0001563,2]
[340670096,1729631444591,-476.469852,0.0001563,2]
[340670097,1729631444601,-476.469852,0.0001563,2]
[340670099,1729631444611,-309.556708,0.0001563,2]
[340670101,1729631444620,-309.556708,0.0001563,2]
[340670103,1729631444629,-309.556708,0.0001563,2]
[340670105,1729631444639,-309.556708,0.0001563,2]
[340670107,1729631444649,-309.556708,0.0001563,2]
[340670109,1729631444659,-309.556708,0.0001563,2]
[340670111,1729631444668,-151.0,0.0001563,2]
[340670113,1729631444678,-241.73618,0.0001563,2]
[340670115,1729631444688,-241.73618,0.0001563,2]
[340670117,1729631444699,-241.73618,0.0001563,2]
[340670119,1729631444710,-241.73618,0.0001563,2]
[340670121,1729631444721,-241.73618,0.0001563,2]
[340670123,1729631444731,-241.73618,0.0001563,2]
[340670126,1729631444740,-151.0,0.0001563,2]
[340670128,1729631444749,-151.0,0.0001563,2]
[340670130,1729631444759,-151.0,0.0001563,2]
[340670132,1729631444769,-151.0,0.0001563,2]
[340670134,1729631444779,-203.095187,0.0001563,2]
[340670136,1729631444788,-203.095187,0.0001563,2]
[340670138,1729631444797,-203.095187,0.0001563,2]
[340670140,1729631444807,-203.095187,0.0001563,2]
[340670142,1729631444817,-203.095187,0.0001563,2]
[340670144,1729631444826,-203.095187,0.0001563,2]
[340670146,1729631444835,-151.0,0.0001563,2]
[340670148,1729631444845,-151.0,0.0001563,2]
[340670150,1729631444855,-151.0,0.0001563,2]
[340670152,1729631444866,-552.405596,0.0001563,2]
[340670154,1729631444875,-552.405596,0.0001563,2]
[340670156,1729631444885,-552.405596,0.0001563,2]
[340670158,1729631444896,-552.405596,0.0001563,2]
[340670160,1729631444905,-552.405596,0.0001563,2]
[340670162,1729631444915,-552.405596,0.0001563,2]
[340670164,1729631444925,-282.318208,0.0001563,2]
[340670166,1729631444935,-282.318208,0.0001563,2]
[340670168,1729631444944,-282.318208,0.0001563,2]
[340670170,1729631444954,-151.0,0.0001563,2]
[340670172,1729631444964,-282.318208,0.0001563,2]
[340670174,1729631444974,-151.0,0.0001563,2]
[340670176,1729631444983,-282.318208,0.0001563,2]
[340670178,1729631444992,-151.0,0.0001563,2]
[340670180,1729631445002,-282.318208,0.0001563,2]
[340670182,1729631445012,-151.0,0.0001563,2]
[340670184,1729631445022,-151.0,0.0001563,2]
[340670186,1729631445032,-283.136264,0.0001563,2]
[340670188,1729631445041,-220.934725,0.0001563,2]
[340670190,1729631445051,-220.934725,0.0001563,2]
[340670193,1729631445061,-339.52177,0.0001563,2]
[340670194,1729631445071,-339.52177,0.0001563,2]
[340670196,1729631445081,-220.934725,0.0001563,2]
[340670198,1729631445090,-220.934725,0.0001563,2]
[340670201,1729631445101,-339.52177,0.0001563,2]
[340670203,1729631445112,-220.934725,0.0001563,2]
[340670205,1729631445125,-339.52177,0.0001563,2]
[340670207,1729631445135,-220.934725,0.0001563,2]
[340670209,1729631445145,-220.934725,0.0001563,2]
[340670211,1729631445154,-220.934725,0.0001563,2]
[340670213,1729631445163,-352.033644,0.0001563,2]
[340670215,1729631445173,-352.033644,0.0001563,2]
[340670217,1729631445185,-352.033644,0.0001563,2]
[340670219,1729631445195,-352.033644,0.0001563,2]
[340670221,1729631445205,-216.174116,0.0001563,2]
[340670223,1729631445215,-214.235721,0.0001563,2]
[340670225,1729631445225,-216.174116,0.0001563,2]
[340670227,1729631445236,-214.235721,0.0001563,2]
[340670229,1729631445245,-216.174116,0.0001563,2]
[340670231,1729631445258,-216.174116,0.0001563,2]
[340670233,1729631445268,-216.174116,0.0001563,2]
[340670235,1729631445279,-214.235721,0.0001563,2]
[340670237,1729631445290,-216.174116,0.0001563,2]
[340670239,1729631445300,-214.235721,0.0001563,2]
[340670241,1729631445310,-660.747296,0.0001563,2]
[340670243,1729631445320,-660.747296,0.0001563,2]
[340670245,1729631445330,-660.747296,0.0001563,2]
[340670247,1729631445340,-660.747296,0.0001563,2]
[340670249,1729631445349,-164.691823,0.0001563,2]
[340670251,1729631445360,-164.691823,0.0001563,2]
[340670253,1729631445369,-164.691823,0.0001563,2]
[340670255,1729631445379,-164.691823,0.0001563,2]
[340670257,1729631445392,-164.691823,0.0001563,2]
[340670259,1729631445402,-164.691823,0.0001563,2]
[340670260,1729631445414,-194.353004,0.0001563,2]
[340670261,1729631445424,-75.76029733,0.0001563,2]
[340670334,1729631446242,-118.59270667,0.0001563,2]
[340670336,1729631446257,-194.353004,0.0001563,2]
[340670338,1729631446268,-194.353004,0.0001563,2]
[340670340,1729631446278,-151.0,0.0001563,2]
[340670342,1729631446287,-151.0,0.0001563,2]
[340670344,1729631446299,-151.0,0.0001563,2]
[340670346,1729631446309,-151.0,0.0001563,2]
[340670348,1729631446318,-431.640541,0.0001563,2]
[340670350,1729631446330,-431.640541,0.0001563,2]
[340670352,1729631446340,-151.0,0.0001563,2]
[340670354,1729631446349,-151.0,0.0001563,2]